[Event "Vasteras Open Minor 2018"]
[Site "Vasteras"]
[Date "2018.09.28"]
[Round "3"]
[White "Gunnlaugsson, Arnor"]
[Black "Nilsson, Ulf"]
[Result "1-0"]
[ECO "C44"]
[WhiteElo "1172"]
[BlackElo "2001"]
[Annotator "NA RC"]
[PlyCount "99"]
[EventDate "2018.09.28"]
[EventCountry "SWE"]
[SourceTitle "playchess.com"]
[Source "ChessBase"]
[SourceQuality "1"]
[TimeControl "900+5"]

1. e4 {[%emt 0:00:00]} e5 {[%emt 0:00:00]} 2. Nf3 {[%emt 0:00:00]} Nc6 {[%emt 0:00:00]} 3. d4 {[%emt 0:00:01]} exd4 {[%emt 0:00:13]} 4. Nxd4 {[%emt 0:00:03]} Ne5 {[%emt 0:01:13]} (4... Nf6 $11 {remains equal.}) 5. Qh5 {[%emt 0:00:49]} d6 {[%emt 0:01:07]} 6. Nc3 {[%emt 0:01:11]} Bg4 {[%emt 0:00:33]} 7. Qg5 {[%emt 0:00:39]} Be7 {[%emt 0:00:43]} 8. Qe3 {[%emt 0:01:48]} Nf6 {[%emt 0:00:15]} 9. h3 {[%emt 0:00:25]} Bd7 {[%emt 0:00:17]} 10. f4 {[%emt 0:00:34]} Nc6 {[%emt 0:00:58]} 11. Bc4 {[%emt 0:00:39]} Nb4 {[%emt 0:00:34]} 12. a3 {[%emt 0:00:30]} Nc6 {[%emt 0:00:55]} 13. O-O {[%emt 0:00:16]} O-O {[%emt 0:00:23]} 14. f5 {[%emt 0:00:39]} Ne5 {[%emt 0:00:27]} 15. Bd5 {[%emt 0:00:37]} c6 {[%emt 0:00:18]} 16. Ba2 {[%emt 0:00:19]} c5 {[%emt 0:00:42]} 17. Nf3 {[%emt 0:00:30]} Nc6 {[%emt 0:00:25]} 18. Nd5 {[%emt 0:00:50]} Re8 {[%emt 0:00:49]} 19. Bd2 {[%emt 0:01:31]} Rc8 {[%emt 0:00:35]} 20. Rae1 {[%emt 0:00:44]} Nd4 {[%emt 0:00:37]} 21. Nxd4 {[%emt 0:00:17]} cxd4 {[%emt 0:00:04]} 22. Qxd4 {[%emt 0:00:04]} Rxc2 {[%emt 0:00:02]} 23. Bc3 {[%emt 0:00:10]} Bf8 {[%emt 0:01:46]} 24. Bb3 $18 {[%emt 0:00:16]} Rxc3 {[%emt 0:00:25]} 25. Nxc3 {[%emt 0:00:10]} Qc7 {[%emt 0:00:11]} 26. Qc4 {[%emt 0:00:09]} Qb6+ {[%emt 0:00:02]} 27. Kh1 {[%emt 0:00:06]} Be6 {[%emt 0:00:02]} 28. Nd5 {[%emt 0:00:26]} Nxd5 29. fxe6 Rxe6 {[%emt 0:01:25]} 30. exd5 {[%emt 0:00:14]} Rxe1 {[%emt 0:00:13]} 31. Rxe1 {[%emt 0:00:02]} Qf2 {[%emt 0:00:10]} 32. Rf1 {[%emt 0:00:13]} Qxb2 {[%emt 0:00:05]} 33. Qf4 {[%emt 0:00:10]} f6 {[%emt 0:00:09]} 34. Qf3 {[%emt 0:00:40]} Qe5 {[%emt 0:00:04]} 35. Qf5 {[%emt 0:00:12]} Qc3 {[%emt 0:00:10]} 36. Bc2 {[%emt 0:00:06]} g6 {[%emt 0:00:08]} 37. Qxf6 {[%emt 0:00:11]} Qxf6 {[%emt 0:00:02]} 38. Rxf6 {[%emt 0:00:01]} Be7 {[%emt 0:00:04]} 39. Re6 {[%emt 0:00:02]} Bf8 {[%emt 0:00:04]} 40. Kg1 {[%emt 0:00:05]} a5 {[%emt 0:00:03]} 41. Kf1 {[%emt 0:00:02]} b5 {[%emt 0:00:02]} 42. Ke2 {[%emt 0:00:03]} b4 {[%emt 0:00:06]} 43. axb4 {[%emt 0:00:01]} axb4 {[%emt 0:00:02]} 44. Bb3 {[%emt 0:00:01]} Bg7 {[%emt 0:00:10]} 45. Rxd6 {[%emt 0:00:02]} Kf8 {[%emt 0:00:05]} 46. Rd8+ {[%emt 0:00:05]} Ke7 {[%emt 0:00:02]} 47. Ra8 {[%emt 0:00:03]} Kd6 {[%emt 0:00:02]} 48. Ra7 {[%emt 0:00:03]} Bd4 {[%emt 0:00:05]} 49. Ra6+ {[%emt 0:00:08]} Ke5 50. d6 1-0

[Event "Vasteras Open Minor 2018"]
[Site "Vasteras"]
[Date "2018.09.28"]
[Round "4"]
[White "Flykt, Gabriel"]
[Black "Gunnlaugsson, Arnor"]
[Result "1-0"]
[ECO "A22"]
[WhiteElo "1584"]
[BlackElo "1172"]
[Annotator "NA RC"]
[PlyCount "115"]
[EventDate "2018.09.28"]
[EventCountry "SWE"]
[SourceTitle "playchess.com"]
[Source "ChessBase"]
[SourceQuality "1"]
[TimeControl "900+5"]

1. c4 {[%emt 0:00:00]} e5 {[%emt 0:00:00]} 2. Nc3 {[%emt 0:00:00]} Nf6 {[%emt 0:00:01]} 3. g3 {[%emt 0:00:00]} d5 {[%emt 0:00:14]} 4. cxd5 {[%emt 0:00:11]} Nxd5 {[%emt 0:00:01]} 5. Bg2 {[%emt 0:00:04]} Nxc3 {[%emt 0:00:37]} 6. bxc3 {[%emt 0:00:04]} Bc5 {[%emt 0:00:17]} 7. d3 {[%emt 0:01:22]} O-O {[%emt 0:00:13]} 8. Qc2 {[%emt 0:01:06]} Qf6 {[%emt 0:00:48]} 9. Nf3 {[%emt 0:00:25]} h6 {[%emt 0:00:35]} 10. O-O {[%emt 0:00:05]} Bg4 {[%emt 0:00:13]} 11. Bb2 {[%emt 0:01:22]} Nc6 {[%emt 0:00:35]} 12. Rad1 {[%emt 0:00:41]} Rad8 {[%emt 0:00:58]} 13. Rd2 {[%emt 0:01:40]} Rd6 {[%emt 0:01:16]} 14. Qb3 {[%emt 0:00:57]} b6 {[%emt 0:00:50]} 15. Ba3 {[%emt 0:01:00]} Bxa3 {[%emt 0:00:37]} 16. Qxa3 {[%emt 0:00:02]} Rfd8 {[%emt 0:00:29]} 17. Rfd1 {[%emt 0:00:04]} Kh8 {[%emt 0:01:18]} 18. Ne1 {[%emt 0:00:36]} Na5 {[%emt 0:01:20]} 19. Qb2 {[%emt 0:00:39]} c5 {[%emt 0:00:22]} 20. Nc2 {[%emt 0:01:08]} c4 {[%emt 0:00:29]} 21. Nb4 {[%emt 0:00:34]} cxd3 {[%emt 0:00:44]} 22. Rxd3 {[%emt 0:00:04]} Rxd3 {[%emt 0:00:11]} 23. Rxd3 {[%emt 0:00:05]} Rxd3 {[%emt 0:00:11]} 24. exd3 {[%emt 0:00:06]} Bf3 {[%emt 0:00:11]} 25. Qd2 {[%emt 0:00:24]} Bxg2 {[%emt 0:00:28]} 26. Kxg2 {[%emt 0:00:01]} Qd6 {[%emt 0:00:02]} 27. Qe3 {[%emt 0:00:26]} Nc6 {[%emt 0:00:16]} 28. Nc2 {[%emt 0:00:23]} Qd5+ {[%emt 0:00:10]} 29. Qf3 {[%emt 0:00:15]} Qxf3+ {[%emt 0:00:13]} 30. Kxf3 {[%emt 0:00:01]} Kg8 {[%emt 0:00:07]} 31. Ke4 {[%emt 0:00:04]} f6 {[%emt 0:00:02]} 32. Kd5 {[%emt 0:00:05]} Ne7+ {[%emt 0:00:02]} 33. Kd6 {[%emt 0:00:08]} Kf7 {[%emt 0:00:09]} 34. Nb4 {[%emt 0:00:02]} g5 {[%emt 0:00:31]} 35. g4 {[%emt 0:00:32]} a5 {[%emt 0:00:31]} 36. Nd5 {[%emt 0:00:08]} Nxd5 {[%emt 0:00:03]} 37. Kxd5 {[%emt 0:00:01]} Ke7 {[%emt 0:00:04]} 38. Kc6 {[%emt 0:00:04]} Ke6 {[%emt 0:00:01]} 39. Kxb6 {[%emt 0:00:02]} Kd5 {[%emt 0:00:04]} 40. Kxa5 {[%emt 0:00:05]} e4 {[%emt 0:00:01]} 41. dxe4+ Kxe4 {[%emt 0:00:01]} 42. Kb4 {[%emt 0:00:08]} Kf3 {[%emt 0:00:03]} 43. c4 {[%emt 0:00:03]} Kxg4 {[%emt 0:00:14]} 44. a4 {[%emt 0:00:03]} Kf3 {[%emt 0:00:03]} 45. c5 {[%emt 0:00:01]} Kxf2 {[%emt 0:00:02]} 46. c6 {[%emt 0:00:01]} f5 {[%emt 0:00:02]} 47. c7 {[%emt 0:00:01]} f4 {[%emt 0:00:01]} 48. c8=Q {[%emt 0:00:01]} f3 {[%emt 0:00:04]} 49. Qg4 {[%emt 0:00:09]} Ke3 {[%emt 0:00:06]} 50. Qg3 {[%emt 0:00:12]} Ke2 {[%emt 0:00:08]} 51. Kc3 {[%emt 0:00:15]} f2 {[%emt 0:00:01]} 52. Qg4+ {[%emt 0:00:03]} Ke1 {[%emt 0:00:07]} 53. Qe4+ {[%emt 0:00:06]} Kf1 {[%emt 0:00:01]} 54. Qf3 {[%emt 0:00:09]} Kg1 {[%emt 0:00:15]} 55. Qg3+ {[%emt 0:00:03]} Kf1 {[%emt 0:00:04]} 56. Kd2 {[%emt 0:00:03]} g4 {[%emt 0:00:06]} 57. Ke3 {[%emt 0:00:02]} Ke1 {[%emt 0:00:07]} 58. Qxf2+ {[%emt 0:00:02]} 1-0

[Event "Vasteras Open Minor 2018"]
[Site "Vasteras"]
[Date "2018.09.28"]
[Round "4"]
[White "Urbel, Aavo"]
[Black "Tabor, Matvey"]
[Result "1-0"]
[ECO "A48"]
[WhiteElo "1436"]
[BlackElo "1452"]
[Annotator "NA RC"]
[PlyCount "85"]
[EventDate "2018.09.28"]
[EventCountry "SWE"]
[SourceTitle "playchess.com"]
[Source "ChessBase"]
[SourceQuality "1"]
[TimeControl "900+5"]

1. d4 {[%emt 0:00:00]} Nf6 {[%emt 0:00:01]} 2. Nf3 {[%emt 0:00:00]} g6 {[%emt 0:00:06]} 3. e3 {[%emt 0:00:02]} Bg7 4. Nc3 {[%emt 0:00:10]} O-O {[%emt 0:00:18]} 5. Bd3 {[%emt 0:00:19]} d6 {[%emt 0:00:08]} 6. O-O {[%emt 0:00:05]} Nbd7 {[%emt 0:00:07]} 7. b4 {[%emt 0:00:13]} e5 {[%emt 0:00:08]} 8. dxe5 {[%emt 0:00:07]} dxe5 {[%emt 0:00:10]} 9. Ne4 {[%emt 0:00:31]} Nxe4 10. Bxe4 {[%emt 0:00:03]} f5 {[%emt 0:00:30]} 11. Bd5+ {[%emt 0:00:16]} Kh8 {[%emt 0:00:08]} 12. Bb2 {[%emt 0:00:10]} Qe7 {[%emt 0:00:39]} 13. a3 {[%emt 0:00:11]} Nf6 {[%emt 0:01:29]} 14. Bb3 {[%emt 0:01:11]} Nd7 {[%emt 0:01:59]} 15. Qe2 {[%emt 0:01:05]} e4 {[%emt 0:01:23]} 16. Bxg7+ {[%emt 0:00:06]} Qxg7 {[%emt 0:00:40]} 17. Nd4 {[%emt 0:00:11]} Ne5 {[%emt 0:00:37]} 18. h3 {[%emt 0:01:28]} f4 {[%emt 0:00:15]} 19. exf4 {[%emt 0:01:46]} Rxf4 {[%emt 0:00:17]} 20. Be6 {[%emt 0:00:25]} Nf3+ {[%emt 0:01:27]} 21. Nxf3 {[%emt 0:01:32]} exf3 {[%emt 0:00:42]} 22. gxf3 {[%emt 0:01:22]} Qf6 {[%emt 0:00:39]} 23. Bxc8 {[%emt 0:00:36]} Rxc8 {[%emt 0:00:07]} 24. Rae1 {[%emt 0:00:49]} Rxf3 {[%emt 0:00:24]} 25. Qe5 {[%emt 0:01:04]} Qxe5 {[%emt 0:00:14]} 26. Rxe5 {[%emt 0:00:01]} Rxa3 {[%emt 0:00:20]} 27. Kg2 {[%emt 0:00:02]} Rc3 {[%emt 0:00:13]} 28. Rc1 {[%emt 0:00:20]} Kg8 {[%emt 0:00:48]} 29. Re3 {[%emt 0:00:09]} Rc4 {[%emt 0:00:14]} 30. c3 {[%emt 0:00:09]} Kf7 {[%emt 0:00:45]} 31. f3 {[%emt 0:00:02]} c5 {[%emt 0:00:09]} 32. b5 {[%emt 0:00:17]} Re8 {[%emt 0:00:14]} 33. Rd3 {[%emt 0:00:28]} Re2+ {[%emt 0:00:13]} 34. Kg3 {[%emt 0:00:01]} Ke6 {[%emt 0:00:12]} 35. Rd8 {[%emt 0:00:08]} Rb2 {[%emt 0:00:10]} 36. Re1+ {[%emt 0:00:14]} Kf6 {[%emt 0:00:16]} 37. Rf8+ {[%emt 0:00:33]} Kg5 {[%emt 0:00:08]} 38. Rf7 {[%emt 0:00:36]} Rxb5 {[%emt 0:00:11]} 39. Rxh7 {[%emt 0:00:05]} Rxc3 {[%emt 0:00:16]} 40. Ree7 {[%emt 0:00:41]} Kf6 {[%emt 0:01:22]} 41. Rhf7+ {[%emt 0:00:06]} Kg5 {[%emt 0:00:06]} 42. h4+ {[%emt 0:00:05]} Kh6 {[%emt 0:00:01]} 43. Rh7# {[%emt 0:00:01]} 1-0

[Event "Vasteras Open Minor 2018"]
[Site "Vasteras"]
[Date "2018.09.28"]
[Round "4"]
[White "Agelin, Robin"]
[Black "Lofgren, John"]
[Result "0-1"]
[ECO "A51"]
[WhiteElo "1395"]
[BlackElo "1511"]
[Annotator "NA RC"]
[PlyCount "36"]
[EventDate "2018.09.28"]
[EventCountry "SWE"]
[SourceTitle "playchess.com"]
[Source "ChessBase"]
[SourceQuality "1"]
[TimeControl "900+5"]

1. d4 {[%emt 0:00:00]} Nf6 {[%emt 0:00:00]} 2. c4 {[%emt 0:00:00]} e5 {[%emt 0:00:00]} 3. Bg5 {[%emt 0:00:08]} Bb4+ {[%emt 0:00:13]} 4. Nc3 {[%emt 0:00:07]} exd4 {[%emt 0:00:11]} 5. a3 {[%emt 0:00:09]} Bxc3+ {[%emt 0:00:28]} 6. bxc3 {[%emt 0:00:02]} dxc3 {[%emt 0:00:01]} 7. Qc2 {[%emt 0:00:10]} h6 {[%emt 0:00:25]} 8. Bh4 {[%emt 0:00:02]} d6 {[%emt 0:00:12]} 9. e3 Be6 10. Nf3 {[%emt 0:00:07]} Nbd7 {[%emt 0:00:19]} 11. Qxc3 {[%emt 0:00:06]} c6 12. Be2 {[%emt 0:00:04]} O-O {[%emt 0:00:24]} 13. O-O {[%emt 0:00:27]} Ne4 14. Qc2 {[%emt 0:00:02]} Nef6 {[%emt 0:00:13]} 15. Bd3 Qc7 16. Bg3 {[%emt 0:00:36]} Nc5 {[%emt 0:00:31]} 17. Rfd1 {[%emt 0:00:19]} Rad8 {[%emt 0:00:17]} 18. Bh4 {[%emt 0:00:15]} Rd7 {[%emt 0:00:14]} 0-1

[Event "Vasteras Open Minor 2018"]
[Site "Vasteras"]
[Date "2018.09.28"]
[Round "4"]
[White "Seo, Jung Hyun"]
[Black "Jonsson, Kristjan Dagur"]
[Result "0-1"]
[ECO "B01"]
[WhiteElo "1389"]
[BlackElo "1267"]
[Annotator "NA RC"]
[PlyCount "214"]
[EventDate "2018.09.28"]
[EventCountry "SWE"]
[SourceTitle "playchess.com"]
[Source "ChessBase"]
[SourceQuality "1"]
[TimeControl "900+5"]

1. e4 {[%emt 0:00:00]} d5 {[%emt 0:00:00]} 2. exd5 {[%emt 0:00:00]} Nf6 {[%emt 0:00:00]} 3. d4 {[%emt 0:00:00]} Nxd5 {[%emt 0:00:00]} 4. Nf3 {[%emt 0:00:00]} Bg4 {[%emt 0:00:01]} 5. c4 {[%emt 0:00:05]} Nf6 {[%emt 0:00:02]} 6. Be2 {[%emt 0:00:02]} Nbd7 {[%emt 0:00:05]} 7. Nc3 {[%emt 0:00:01]} e6 {[%emt 0:00:06]} 8. h3 {[%emt 0:00:01]} Bf5 {[%emt 0:00:05]} 9. Bg5 {[%emt 0:00:05]} Bb4 {[%emt 0:00:04]} 10. Rc1 {[%emt 0:00:24]} h6 {[%emt 0:00:24]} 11. Bh4 {[%emt 0:00:12]} g5 {[%emt 0:00:14]} 12. Bg3 {[%emt 0:00:02]} Ne4 {[%emt 0:00:06]} 13. Be5 {[%emt 0:00:43]} f6 {[%emt 0:00:53]} 14. Bh2 {[%emt 0:00:02]} Nxc3 {[%emt 0:02:05]} 15. bxc3 {[%emt 0:00:02]} Bd6 {[%emt 0:00:23]} 16. Qb3 {[%emt 0:01:18]} Bxh2 {[%emt 0:00:28]} 17. Nxh2 {[%emt 0:00:21]} Be4 {[%emt 0:01:01]} 18. f3 {[%emt 0:00:47]} Bc6 {[%emt 0:00:10]} 19. d5 {[%emt 0:00:08]} exd5 {[%emt 0:00:13]} 20. cxd5 {[%emt 0:00:02]} Nc5 {[%emt 0:00:15]} 21. Qb4 {[%emt 0:01:11]} Qxd5 {[%emt 0:00:51]} 22. Ng4 {[%emt 0:00:29]} Qd6 {[%emt 0:01:05]} 23. Rd1 {[%emt 0:00:07]} Qe7 {[%emt 0:00:14]} 24. Nxf6+ {[%emt 0:00:32]} Qxf6 {[%emt 0:00:35]} 25. Qxc5 {[%emt 0:00:02]} Qe7 {[%emt 0:00:16]} 26. Qd4 {[%emt 0:00:47]} Kf7 {[%emt 0:00:28]} 27. Kf2 {[%emt 0:01:10]} Rhd8 {[%emt 0:00:30]} 28. Bc4+ {[%emt 0:00:16]} Kg6 {[%emt 0:00:26]} 29. Bd3+ {[%emt 0:00:33]} Kf7 {[%emt 0:00:07]} 30. Qc4+ {[%emt 0:00:12]} Bd5 {[%emt 0:00:19]} 31. Qa4 {[%emt 0:01:12]} Qc5+ {[%emt 0:00:12]} 32. Kg3 {[%emt 0:01:14]} Qxc3 {[%emt 0:00:17]} 33. Qb5 {[%emt 0:00:44]} Qe5+ {[%emt 0:00:26]} 34. Kf2 {[%emt 0:00:08]} Qd4+ {[%emt 0:00:05]} 35. Kg3 {[%emt 0:00:51]} Qf4+ {[%emt 0:00:34]} 36. Kf2 {[%emt 0:00:01]} Bxa2 {[%emt 0:00:07]} 37. Qxb7 {[%emt 0:00:19]} Qd4+ {[%emt 0:00:20]} 38. Kg3 {[%emt 0:00:19]} Qe5+ {[%emt 0:00:11]} 39. Kf2 {[%emt 0:00:06]} Qc5+ {[%emt 0:00:04]} 40. Kg3 {[%emt 0:00:34]} Qd6+ {[%emt 0:00:04]} 41. Kf2 {[%emt 0:00:01]} Qb6+ {[%emt 0:00:01]} 42. Qxb6 {[%emt 0:00:03]} axb6 {[%emt 0:00:01]} 43. Be4 {[%emt 0:00:05]} Rxd1 {[%emt 0:00:17]} 44. Rxd1 {[%emt 0:00:01]} Re8 {[%emt 0:00:07]} 45. g3 Ke7 {[%emt 0:00:28]} 46. f4 {[%emt 0:00:54]} gxf4 {[%emt 0:00:07]} 47. gxf4 {[%emt 0:00:01]} Kf6 {[%emt 0:00:05]} 48. Kf3 {[%emt 0:00:02]} Re6 {[%emt 0:00:27]} 49. Rc1 {[%emt 0:00:36]} c5 {[%emt 0:00:12]} 50. Ra1 {[%emt 0:00:22]} Bc4 {[%emt 0:00:10]} 51. Rc1 {[%emt 0:00:10]} b5 {[%emt 0:00:02]} 52. f5 {[%emt 0:00:28]} Rd6 {[%emt 0:00:06]} 53. Kg4 {[%emt 0:00:17]} Rd4 {[%emt 0:00:08]} 54. Kf3 {[%emt 0:00:06]} Bd5 {[%emt 0:00:07]} 55. Rxc5 {[%emt 0:00:28]} Bxe4+ {[%emt 0:00:15]} 56. Ke3 {[%emt 0:00:00]} Rd5 {[%emt 0:00:06]} 57. Rc6+ {[%emt 0:00:08]} Kxf5 {[%emt 0:00:06]} 58. Rxh6 {[%emt 0:00:04]} Rd3+ {[%emt 0:00:07]} 59. Ke2 {[%emt 0:00:01]} Rg3 {[%emt 0:00:12]} 60. h4 {[%emt 0:00:15]} Ke5 {[%emt 0:00:15]} 61. Rh5+ {[%emt 0:00:01]} Bf5 {[%emt 0:00:01]} 62. Rh8 Bd3+ {[%emt 0:00:33]} 63. Kf2 {[%emt 0:00:21]} Rh3 {[%emt 0:00:02]} 64. Kg2 {[%emt 0:00:01]} Re3 65. h5 {[%emt 0:00:03]} Kf6 {[%emt 0:00:31]} 66. Kf2 {[%emt 0:00:06]} Re7 {[%emt 0:00:04]} 67. h6 {[%emt 0:00:06]} Rh7 {[%emt 0:00:22]} 68. Rf8+ {[%emt 0:00:02]} Ke7 {[%emt 0:00:02]} 69. Rb8 {[%emt 0:00:02]} Rxh6 {[%emt 0:00:05]} 70. Ke3 {[%emt 0:00:01]} Bc4 {[%emt 0:00:04]} 71. Kd4 {[%emt 0:00:00]} Kd7 {[%emt 0:00:14]} 72. Kc3 {[%emt 0:00:04]} Kc7 {[%emt 0:00:05]} 73. Ra8 {[%emt 0:00:02]} Kb7 {[%emt 0:00:05]} 74. Re8 {[%emt 0:00:02]} Re6 {[%emt 0:00:07]} 75. Rh8 {[%emt 0:00:12]} Re3+ {[%emt 0:00:06]} 76. Kc2 {[%emt 0:00:06]} Kb6 {[%emt 0:00:18]} 77. Kb2 {[%emt 0:00:06]} Kc5 {[%emt 0:00:03]} 78. Rh5+ {[%emt 0:00:05]} Kb4 {[%emt 0:00:01]} 79. Rh4 {[%emt 0:00:01]} Re2+ {[%emt 0:00:05]} 80. Kc1 {[%emt 0:00:03]} Kc3 {[%emt 0:00:04]} 81. Rh3+ {[%emt 0:00:01]} Bd3 {[%emt 0:00:03]} 82. Kd1 {[%emt 0:00:05]} Rd2+ {[%emt 0:00:02]} 83. Kc1 {[%emt 0:00:05]} b4 {[%emt 0:00:07]} 84. Rh8 {[%emt 0:00:06]} Rc2+ {[%emt 0:00:08]} 85. Kd1 {[%emt 0:00:00]} Kb3 {[%emt 0:00:03]} 86. Rh3 {[%emt 0:00:02]} Kc3 {[%emt 0:00:08]} 87. Rh8 {[%emt 0:00:03]} b3 {[%emt 0:00:07]} 88. Rb8 {[%emt 0:00:07]} Rd2+ {[%emt 0:00:36]} 89. Ke1 {[%emt 0:00:09]} Re2+ {[%emt 0:00:15]} 90. Kd1 {[%emt 0:00:01]} Kb2 {[%emt 0:00:01]} 91. Rc8 {[%emt 0:00:06]} Rc2 {[%emt 0:00:08]} 92. Rd8 {[%emt 0:00:03]} Be2+ {[%emt 0:00:25]} 93. Ke1 {[%emt 0:00:00]} Ka1 {[%emt 0:00:05]} 94. Ra8+ {[%emt 0:00:02]} Ra2 {[%emt 0:00:02]} 95. Re8 {[%emt 0:00:31]} b2 {[%emt 0:00:04]} 96. Kf2 {[%emt 0:00:11]} b1=Q {[%emt 0:00:09]} 97. Kg3 {[%emt 0:00:08]} Qg6+ {[%emt 0:00:02]} 98. Kf4 {[%emt 0:00:01]} Ra4+ {[%emt 0:00:02]} 99. Ke5 {[%emt 0:00:00]} Qxe8+ {[%emt 0:00:02]} 100. Kd6 {[%emt 0:00:01]} Ra6+ {[%emt 0:00:01]} 101. Kd5 {[%emt 0:00:02]} Qc6+ {[%emt 0:00:02]} 102. Ke5 {[%emt 0:00:01]} Ra5+ {[%emt 0:00:06]} 103. Kd4 {[%emt 0:00:01]} Qc4+ {[%emt 0:00:03]} 104. Ke3 {[%emt 0:00:01]} Ra3+ {[%emt 0:00:00]} 105. Kf2 {[%emt 0:00:01]} Qf4+ {[%emt 0:00:04]} 106. Ke1 {[%emt 0:00:05]} Qf1+ {[%emt 0:00:01]} 107. Kd2 {[%emt 0:00:01]} Qd1# {[%emt 0:00:02]} 0-1

[Event "Vasteras Open Minor 2018"]
[Site "Vasteras"]
[Date "2018.09.28"]
[Round "4"]
[White "Edberg, Markus"]
[Black "Laine, Jacob"]
[Result "0-1"]
[ECO "D47"]
[WhiteElo "1338"]
[BlackElo "1591"]
[Annotator "NA RC"]
[PlyCount "74"]
[EventDate "2018.09.28"]
[EventCountry "SWE"]
[SourceTitle "playchess.com"]
[Source "ChessBase"]
[SourceQuality "1"]
[TimeControl "900+5"]

1. d4 {[%emt 0:00:00]} d5 {[%emt 0:00:00]} 2. c4 {[%emt 0:00:00]} c6 {[%emt 0:00:00]} 3. Nc3 {[%emt 0:00:00]} Nf6 {[%emt 0:00:00]} 4. e3 {[%emt 0:00:08]} e6 {[%emt 0:00:54]} 5. Bd3 {[%emt 0:00:15]} Nbd7 {[%emt 0:00:21]} 6. Nf3 {[%emt 0:00:18]} dxc4 {[%emt 0:00:16]} 7. Bxc4 {[%emt 0:00:04]} b5 {[%emt 0:00:01]} 8. Bb3 {[%emt 0:00:03]} Bb7 {[%emt 0:00:10]} 9. e4 {[%emt 0:01:15]} a6 {[%emt 0:00:41]} 10. O-O {[%emt 0:00:06]} c5 {[%emt 0:00:10]} 11. Re1 {[%emt 0:00:49]} cxd4 {[%emt 0:01:24]} 12. Nxd4 {[%emt 0:01:33]} Bc5 {[%emt 0:00:32]} 13. e5 {[%emt 0:01:45]} Nxe5 {[%emt 0:01:04]} 14. Bg5 {[%emt 0:01:44]} Qxd4 {[%emt 0:00:46]} 15. Qxd4 {[%emt 0:01:49]} Bxd4 {[%emt 0:00:01]} 16. Rad1 {[%emt 0:01:03]} Bxc3 {[%emt 0:00:23]} 17. bxc3 {[%emt 0:00:01]} Nc4 {[%emt 0:00:19]} 18. Rb1 {[%emt 0:01:02]} Bd5 {[%emt 0:00:07]} 19. Red1 {[%emt 0:00:46]} Ne4 {[%emt 0:00:24]} 20. Bd2 {[%emt 0:03:32]} Nexd2 {[%emt 0:00:03]} 21. Rxd2 {[%emt 0:00:00]} Nxd2 {[%emt 0:00:03]} 22. Bxd5 {[%emt 0:00:01]} Nxb1 {[%emt 0:00:05]} 23. Bxa8 {[%emt 0:00:01]} Ke7 {[%emt 0:00:10]} 24. Bb7 {[%emt 0:00:04]} a5 {[%emt 0:00:01]} 25. Ba6 {[%emt 0:00:03]} Nxc3 {[%emt 0:00:03]} 26. a3 {[%emt 0:00:03]} Rd8 {[%emt 0:00:05]} 27. h3 {[%emt 0:00:04]} Rd6 {[%emt 0:00:08]} 28. Bb7 {[%emt 0:00:01]} Nb1 {[%emt 0:00:03]} 29. Be4 {[%emt 0:00:15]} Nxa3 {[%emt 0:00:01]} 30. Bxh7 {[%emt 0:00:02]} g6 {[%emt 0:00:01]} 31. g4 {[%emt 0:00:04]} b4 {[%emt 0:00:04]} 32. h4 {[%emt 0:00:03]} Rd5 {[%emt 0:00:04]} 33. h5 {[%emt 0:00:04]} gxh5 {[%emt 0:00:01]} 34. gxh5 {[%emt 0:00:01]} Rxh5 {[%emt 0:00:02]} 35. Be4 {[%emt 0:00:05]} b3 {[%emt 0:00:04]} 36. Bf3 {[%emt 0:00:05]} Rg5+ {[%emt 0:00:01]} 37. Bg2 {[%emt 0:00:01]} b2 {[%emt 0:00:01]} 0-1

[Event "Vasteras Open Minor 2018"]
[Site "Vasteras"]
[Date "2018.09.29"]
[Round "5"]
[White "Laine, Jacob"]
[Black "Relom, Sunny"]
[Result "1-0"]
[ECO "A45"]
[WhiteElo "1591"]
[BlackElo "1452"]
[Annotator "NA RC"]
[PlyCount "47"]
[EventDate "2018.09.28"]
[EventCountry "SWE"]
[SourceTitle "playchess.com"]
[Source "ChessBase"]
[SourceQuality "1"]
[TimeControl "5400+30"]

1. d4 {[%emt 0:00:00]} Nf6 {[%emt 0:06:30]} 2. Bf4 {[%emt 0:00:00]} g6 {[%emt 0:00:47]} 3. e3 {[%emt 0:00:00]} Bg7 {[%emt 0:00:24]} 4. Nf3 {[%emt 0:00:31]} O-O {[%emt 0:00:21]} 5. Nbd2 {[%emt 0:00:51]} d6 {[%emt 0:00:42]} 6. Bd3 {[%emt 0:00:30]} Nbd7 {[%emt 0:02:56]} 7. Bg3 {[%emt 0:11:00]} Nh5 {[%emt 0:12:48]} 8. c3 {[%emt 0:01:23]} e5 {[%emt 0:05:59]} 9. Qc2 {[%emt 0:02:16]} f5 {[%emt 0:03:17]} 10. O-O-O {[%emt 0:05:26]} Kh8 {[%emt 0:00:59]} 11. dxe5 {[%emt 0:01:19]} Nxg3 {[%emt 0:04:56]} 12. hxg3 {[%emt 0:00:03]} Nxe5 {[%emt 0:01:18]} 13. Nxe5 {[%emt 0:03:28]} Bxe5 {[%emt 0:00:35]} 14. f4 {[%emt 0:00:44]} Bf6 {[%emt 0:00:36]} 15. e4 {[%emt 0:00:53]} Bg7 {[%emt 0:03:12]} 16. Nf3 {[%emt 0:01:14]} fxe4 {[%emt 0:04:00]} 17. Bxe4 {[%emt 0:00:02]} Bf5 {[%emt 0:00:12]} 18. Rxh7+ {[%emt 0:06:28]} Kxh7 {[%emt 0:08:29]} 19. Ng5+ {[%emt 0:00:01]} Kg8 {[%emt 0:01:21]} 20. Qb3+ {[%emt 0:00:27]} Kh8 {[%emt 0:02:49]} 21. Rh1+ {[%emt 0:00:24]} Bh6 {[%emt 0:00:17]} 22. Rxh6+ {[%emt 0:00:01]} Kg7 {[%emt 0:00:17]} 23. Rh7+ {[%emt 0:00:12]} Kf6 {[%emt 0:01:46]} 24. Rf7+ {[%emt 0:00:05]} 1-0

[Event "Vasteras Open Minor 2018"]
[Site "Vasteras"]
[Date "2018.09.29"]
[Round "5"]
[White "Lofgren, John"]
[Black "Tolstoy, Anastasia"]
[Result "1-0"]
[ECO "C26"]
[WhiteElo "1511"]
[BlackElo "1228"]
[Annotator "NA RC"]
[PlyCount "67"]
[EventDate "2018.09.28"]
[EventCountry "SWE"]
[SourceTitle "playchess.com"]
[Source "ChessBase"]
[SourceQuality "1"]
[TimeControl "5400+30"]

1. e4 {[%emt 0:00:00]} e5 {[%emt 0:00:00]} 2. Nc3 {[%emt 0:00:00]} Nf6 {[%emt 0:00:22]} 3. f4 {[%emt 0:00:00]} Nc6 {[%emt 0:00:57]} 4. fxe5 {[%emt 0:00:00]} Nxe5 {[%emt 0:00:02]} 5. d4 {[%emt 0:00:00]} Nc6 {[%emt 0:01:17]} 6. e5 {[%emt 0:00:03]} Qe7 {[%emt 0:00:41]} 7. Be2 {[%emt 0:01:06]} Nxe5 {[%emt 0:01:59]} 8. dxe5 {[%emt 0:00:09]} Qxe5 {[%emt 0:00:13]} 9. Nf3 {[%emt 0:00:13]} Qe6 {[%emt 0:02:45]} 10. O-O {[%emt 0:01:21]} Bc5+ {[%emt 0:00:11]} 11. Kh1 {[%emt 0:00:10]} O-O {[%emt 0:03:35]} 12. b3 {[%emt 0:01:59]} Re8 {[%emt 0:02:06]} 13. Bc4 {[%emt 0:01:12]} Qc6 {[%emt 0:02:06]} 14. Bb2 {[%emt 0:02:20]} a6 {[%emt 0:00:25]} 15. Nd5 {[%emt 0:00:27]} Nxd5 {[%emt 0:01:00]} 16. Bxd5 {[%emt 0:00:10]} Qg6 {[%emt 0:01:09]} 17. Bxf7+ {[%emt 0:01:28]} Qxf7 {[%emt 0:01:09]} 18. Ng5 {[%emt 0:00:09]} Qg6 {[%emt 0:03:29]} 19. Qd5+ {[%emt 0:00:25]} Kh8 {[%emt 0:00:12]} 20. Nf7+ {[%emt 0:00:18]} Kg8 {[%emt 0:00:30]} 21. Ne5+ {[%emt 0:00:07]} Qe6 {[%emt 0:00:21]} 22. Qxc5 {[%emt 0:01:18]} d6 {[%emt 0:00:29]} 23. Qxc7 {[%emt 0:00:14]} dxe5 {[%emt 0:00:10]} 24. Bxe5 {[%emt 0:00:14]} Re7 {[%emt 0:02:47]} 25. Rad1 {[%emt 0:01:31]} Bd7 {[%emt 0:08:39]} 26. Bd6 {[%emt 0:02:26]} Ree8 {[%emt 0:03:33]} 27. Qxb7 {[%emt 0:02:11]} Rec8 {[%emt 0:01:15]} 28. Be5 {[%emt 0:04:22]} Rd8 {[%emt 0:04:39]} 29. Rd6 {[%emt 0:01:13]} Rab8 {[%emt 0:02:28]} 30. Qxb8 {[%emt 0:02:26]} Rxb8 {[%emt 0:00:11]} 31. Rxe6 {[%emt 0:00:05]} Rc8 {[%emt 0:00:46]} 32. Re7 {[%emt 0:00:14]} Bc6 {[%emt 0:00:40]} 33. Rxg7+ {[%emt 0:00:06]} Kh8 {[%emt 0:00:09]} 34. Rg6# {[%emt 0:00:08]} 1-0